[Event "Late-Titled-Tuesday-Blitz-June-25-2024"]
[Site "Chess.com"]
[Date "2024.06.25"]
[Round "3"]
[White "N_I_Chess"]
[Black "Crasyhealer"]
[Result "0-1"]
[WhiteElo "2258"]
[BlackElo "2503"]
[TimeControl "180+1"]
[EndTime "14:27:47 PDT"]
[Termination "Crasyhealer won on time"]

1. d4 {[%clk 0:02:58.4]} 1... d6 {[%clk 0:02:57.5]} 2. c4 {[%clk 0:02:57.2]}
2... Nf6 {[%clk 0:02:57.8]} 3. Nc3 {[%clk 0:02:54.7]} 3... g6 {[%clk 0:02:57.7]}
4. e4 {[%clk 0:02:55.1]} 4... Bg7 {[%clk 0:02:56]} 5. f4 {[%clk 0:02:55.7]} 5...
O-O {[%clk 0:02:54.4]} 6. Nf3 {[%clk 0:02:55.9]} 6... c6 {[%clk 0:02:31.2]} 7.
Bd3 {[%clk 0:02:43.5]} 7... Qa5 {[%clk 0:02:30.3]} 8. O-O {[%clk 0:02:41]} 8...
a6 {[%clk 0:02:27]} 9. e5 {[%clk 0:02:31.4]} 9... Nfd7 {[%clk 0:02:21]} 10. Qe2
{[%clk 0:02:24.4]} 10... dxe5 {[%clk 0:02:16.7]} 11. fxe5 {[%clk 0:02:23.9]}
11... e6 {[%clk 0:02:11.4]} 12. Bd2 {[%clk 0:01:50]} 12... Qc7 {[%clk
0:02:10.6]} 13. Rae1 {[%clk 0:01:41.7]} 13... b5 {[%clk 0:02:10.6]} 14. c5
{[%clk 0:01:41.3]} 14... a5 {[%clk 0:02:06.4]} 15. Kh1 {[%clk 0:01:34.9]} 15...
b4 {[%clk 0:02:06.7]} 16. Ne4 {[%clk 0:01:35.4]} 16... Ba6 {[%clk 0:02:06]} 17.
Nd6 {[%clk 0:01:28.9]} 17... Bxd3 {[%clk 0:02:04.7]} 18. Qxd3 {[%clk 0:01:29.8]}
18... Qd8 {[%clk 0:01:50.9]} 19. Bg5 {[%clk 0:01:22.2]} 19... f6 {[%clk
0:01:51.1]} 20. exf6 {[%clk 0:01:21.4]} 20... Nxf6 {[%clk 0:01:52]} 21. Rxe6
{[%clk 0:01:20.6]} 21... Nbd7 {[%clk 0:01:51.5]} 22. Ne5 {[%clk 0:01:13.4]}
22... Qc7 {[%clk 0:01:48.5]} 23. Re7 {[%clk 0:01:09.6]} 23... Nxe5 {[%clk
0:01:46.2]} 24. Rxg7+ {[%clk 0:00:36.9]} 24... Qxg7 {[%clk 0:01:40]} 25. dxe5
{[%clk 0:00:37.6]} 25... Nd5 {[%clk 0:01:40.6]} 26. Re1 {[%clk 0:00:35.8]} 26...
b3 {[%clk 0:01:28.5]} 27. axb3 {[%clk 0:00:31.4]} 27... a4 {[%clk 0:01:27.8]}
28. bxa4 {[%clk 0:00:31.3]} 28... Rxa4 {[%clk 0:01:28.7]} 29. h3 {[%clk
0:00:28.9]} 29... Rb4 {[%clk 0:01:10.6]} 30. b3 {[%clk 0:00:19.6]} 30... Rfb8
{[%clk 0:01:10.1]} 31. e6 {[%clk 0:00:16.4]} 31... Rxb3 {[%clk 0:01:10.3]} 32.
Qc2 {[%clk 0:00:10.9]} 32... Rb2 {[%clk 0:01:08.9]} 33. Qa4 {[%clk 0:00:10.9]}
33... Rb1 {[%clk 0:01:07]} 34. Qa5 {[%clk 0:00:07.2]} 34... Qe5 {[%clk
0:00:49.7]} 35. Bd2 {[%clk 0:00:03.4]} 35... Qxe6 {[%clk 0:00:46.7]} 36. Kh2
{[%clk 0:00:02.9]} 36... Rxe1 {[%clk 0:00:45.6]} 37. Bxe1 {[%clk 0:00:03.8]}
37... Qe5+ {[%clk 0:00:46.2]} 38. Bg3 {[%clk 0:00:04.5]} 38... Qc3 {[%clk
0:00:40.7]} 39. Qa7 {[%clk 0:00:05]} 39... Rf8 {[%clk 0:00:38.6]} 40. Qd7 {[%clk
0:00:05.6]} 40... Qg7 {[%clk 0:00:22.9]} 41. Qxc6 {[%clk 0:00:05.2]} 41... Ne3
{[%clk 0:00:23.4]} 42. Qe4 {[%clk 0:00:04.3]} 42... Nf1+ {[%clk 0:00:23.5]} 43.
Kg1 {[%clk 0:00:02.7]} 43... Nxg3 {[%clk 0:00:23.6]} 44. Qe6+ {[%clk 0:00:03.1]}
44... Kh8 {[%clk 0:00:24.2]} 45. c6 {[%clk 0:00:01.3]} 45... Rf1+ {[%clk
0:00:23.8]} 46. Kh2 {[%clk 0:00:02]} 46... Qc3 {[%clk 0:00:18.7]} 0-1

[Event "Late-Titled-Tuesday-Blitz-June-25-2024"]
[Site "Chess.com"]
[Date "2024.06.25"]
[Round "3"]
[White "laskakid"]
[Black "UB_TheQueen"]
[Result "1-0"]
[WhiteElo "2403"]
[BlackElo "2036"]
[TimeControl "180+1"]
[EndTime "14:27:52 PDT"]
[Termination "laskakid won on time"]

1. Nf3 {[%clk 0:03:00.9]} 1... Nf6 {[%clk 0:02:45]} 2. b3 {[%clk 0:03:00.6]}
2... g6 {[%clk 0:02:44.2]} 3. Bb2 {[%clk 0:03:00.8]} 3... Bg7 {[%clk 0:02:44.8]}
4. g3 {[%clk 0:03:01.1]} 4... O-O {[%clk 0:02:45]} 5. Bg2 {[%clk 0:03:01.2]}
5... d6 {[%clk 0:02:45.7]} 6. d4 {[%clk 0:03:01]} 6... a5 {[%clk 0:02:43.3]} 7.
a3 {[%clk 0:02:56]} 7... c5 {[%clk 0:02:39]} 8. c4 {[%clk 0:02:52.4]} 8... cxd4
{[%clk 0:02:38.5]} 9. Nxd4 {[%clk 0:02:51.6]} 9... d5 {[%clk 0:02:31.4]} 10. Nd2
{[%clk 0:02:35.1]} 10... e5 {[%clk 0:02:23.4]} 11. Nb5 {[%clk 0:02:29.3]} 11...
d4 {[%clk 0:02:18]} 12. O-O {[%clk 0:02:29.1]} 12... Nc6 {[%clk 0:02:17.4]} 13.
c5 {[%clk 0:02:15]} 13... Bg4 {[%clk 0:02:03.7]} 14. h3 {[%clk 0:02:07.3]} 14...
Be6 {[%clk 0:02:02.4]} 15. Nd6 {[%clk 0:02:01.9]} 15... Qd7 {[%clk 0:01:42.3]}
16. N2c4 {[%clk 0:01:53]} 16... Bxh3 {[%clk 0:01:38.5]} 17. Nb6 {[%clk 0:01:40]}
17... Qg4 {[%clk 0:01:36.7]} 18. Nxa8 {[%clk 0:01:36.3]} 18... Rxa8 {[%clk
0:01:31.4]} 19. Kh2 {[%clk 0:01:19.3]} 19... Bxg2 {[%clk 0:01:28.1]} 20. Kxg2
{[%clk 0:01:19.5]} 20... Nd5 {[%clk 0:01:19.9]} 21. Rh1 {[%clk 0:01:10.5]} 21...
Qd7 {[%clk 0:00:50.5]} 22. Qd3 {[%clk 0:01:04.4]} 22... b6 {[%clk 0:00:47.3]}
23. Ne4 {[%clk 0:00:57.2]} 23... f5 {[%clk 0:00:44.6]} 24. Ng5 {[%clk
0:00:54.9]} 24... h6 {[%clk 0:00:38.4]} 25. Nh3 {[%clk 0:00:53.7]} 25... bxc5
{[%clk 0:00:38.2]} 26. Qc4 {[%clk 0:00:50.4]} 26... Qd6 {[%clk 0:00:36]} 27.
Rac1 {[%clk 0:00:48.9]} 27... Bf8 {[%clk 0:00:26.7]} 28. f4 {[%clk 0:00:40.4]}
28... e4 {[%clk 0:00:24.1]} 29. e3 {[%clk 0:00:29.1]} 29... Kg7 {[%clk
0:00:22.6]} 30. Rhe1 {[%clk 0:00:26.3]} 30... Be7 {[%clk 0:00:17.3]} 31. exd4
{[%clk 0:00:25.6]} 31... Nxd4 {[%clk 0:00:17.2]} 32. Bxd4+ {[%clk 0:00:25.2]}
32... cxd4 {[%clk 0:00:17.2]} 33. Qxd4+ {[%clk 0:00:25.1]} 33... Bf6 {[%clk
0:00:17.8]} 34. Qc5 {[%clk 0:00:23.1]} 34... Qd7 {[%clk 0:00:09.3]} 35. Rcd1
{[%clk 0:00:20.6]} 35... Rd8 {[%clk 0:00:08.9]} 36. Nf2 {[%clk 0:00:18]} 36...
Qf7 {[%clk 0:00:07.1]} 37. Re2 {[%clk 0:00:16.2]} 37... Nc3 {[%clk 0:00:05.8]}
38. Rxd8 {[%clk 0:00:14.7]} 38... Nxe2 {[%clk 0:00:05.9]} 39. Rc8 {[%clk
0:00:12.5]} 39... Bd4 {[%clk 0:00:03.4]} 40. Qc7 {[%clk 0:00:12]} 40... Qxc7
{[%clk 0:00:02.8]} 41. Rxc7+ {[%clk 0:00:12.3]} 41... Kf6 {[%clk 0:00:03.7]} 42.
Rc6+ {[%clk 0:00:11.1]} 42... Kf7 {[%clk 0:00:03.3]} 43. Ra6 {[%clk 0:00:11.3]}
43... Nc3 {[%clk 0:00:02.6]} 44. Rxa5 {[%clk 0:00:10.6]} 44... e3 {[%clk
0:00:03.3]} 45. Nd3 {[%clk 0:00:10.3]} 45... e2 {[%clk 0:00:01.3]} 46. b4 {[%clk
0:00:08.7]} 1-0

[Event "Late-Titled-Tuesday-Blitz-June-25-2024"]
[Site "Chess.com"]
[Date "2024.06.25"]
[Round "3"]
[White "Moon_stone123"]
[Black "norwaytoadog"]
[Result "0-1"]
[WhiteElo "2584"]
[BlackElo "2380"]
[TimeControl "180+1"]
[EndTime "14:27:56 PDT"]
[Termination "norwaytoadog won on time"]

1. c4 {[%clk 0:03:00.9]} 1... e5 {[%clk 0:02:59.3]} 2. d3 {[%clk 0:02:58.2]}
2... Nf6 {[%clk 0:02:59.5]} 3. Nf3 {[%clk 0:02:57.7]} 3... Nc6 {[%clk
0:02:59.5]} 4. a3 {[%clk 0:02:57.9]} 4... a5 {[%clk 0:02:58.9]} 5. Bg5 {[%clk
0:02:51.7]} 5... Be7 {[%clk 0:02:56.9]} 6. Nc3 {[%clk 0:02:49.7]} 6... d6 {[%clk
0:02:56.6]} 7. g3 {[%clk 0:02:49]} 7... Be6 {[%clk 0:02:54.5]} 8. Bg2 {[%clk
0:02:48.8]} 8... O-O {[%clk 0:02:53.8]} 9. O-O {[%clk 0:02:48.2]} 9... h6 {[%clk
0:02:50.7]} 10. Bxf6 {[%clk 0:02:48.2]} 10... Bxf6 {[%clk 0:02:51.2]} 11. Ne1
{[%clk 0:02:48.7]} 11... Qd7 {[%clk 0:02:49.5]} 12. Nd5 {[%clk 0:02:46]} 12...
Bd8 {[%clk 0:02:49.6]} 13. Nc2 {[%clk 0:02:45.3]} 13... Bh3 {[%clk 0:02:46]} 14.
b4 {[%clk 0:02:44.1]} 14... Bxg2 {[%clk 0:02:42.4]} 15. Kxg2 {[%clk 0:02:43.9]}
15... Ne7 {[%clk 0:02:41.1]} 16. Nxe7+ {[%clk 0:02:42.9]} 16... Qxe7 {[%clk
0:02:39.9]} 17. e4 {[%clk 0:02:38.2]} 17... c6 {[%clk 0:02:39]} 18. Ne3 {[%clk
0:02:37]} 18... Bb6 {[%clk 0:02:32.6]} 19. Nf5 {[%clk 0:02:35]} 19... Qf6 {[%clk
0:02:32.9]} 20. f4 {[%clk 0:02:31.8]} 20... Kh7 {[%clk 0:02:09.6]} 21. bxa5
{[%clk 0:02:20.2]} 21... Rxa5 {[%clk 0:02:00.6]} 22. Qd2 {[%clk 0:02:10.3]}
22... Rfa8 {[%clk 0:01:47.7]} 23. Qb2 {[%clk 0:01:51.4]} 23... R5a6 {[%clk
0:01:36]} 24. a4 {[%clk 0:01:40.3]} 24... R8a7 {[%clk 0:01:34.1]} 25. fxe5
{[%clk 0:01:15]} 25... dxe5 {[%clk 0:01:21.7]} 26. Qb3 {[%clk 0:01:09.7]} 26...
Bc5 {[%clk 0:01:10.8]} 27. Nh4 {[%clk 0:01:03]} 27... Qe6 {[%clk 0:01:06.7]} 28.
Rf5 {[%clk 0:01:02.6]} 28... g6 {[%clk 0:01:03.7]} 29. Rf3 {[%clk 0:01:01.7]}
29... b5 {[%clk 0:00:59]} 30. Raf1 {[%clk 0:00:45.1]} 30... bxa4 {[%clk
0:00:51.2]} 31. Qb8 {[%clk 0:00:42.9]} 31... a3 {[%clk 0:00:44.8]} 32. Rf6
{[%clk 0:00:41.2]} 32... Qe7 {[%clk 0:00:26.1]} 33. Rxf7+ {[%clk 0:00:20.8]}
33... Qxf7 {[%clk 0:00:25.6]} 34. Rxf7+ {[%clk 0:00:21.7]} 34... Rxf7 {[%clk
0:00:25.6]} 35. Qc8 {[%clk 0:00:15.8]} 35... Rfa7 {[%clk 0:00:16.4]} 36. Qe6
{[%clk 0:00:16.2]} 36... Rg7 {[%clk 0:00:14.5]} 37. Qc8 {[%clk 0:00:09.4]} 37...
Raa7 {[%clk 0:00:14.4]} 38. Qe8 {[%clk 0:00:07.5]} 38... a2 {[%clk 0:00:13.4]}
39. Qxe5 {[%clk 0:00:08.3]} 39... a1=Q {[%clk 0:00:09.6]} 40. Qxc5 {[%clk
0:00:08.5]} 40... Qb2+ {[%clk 0:00:07.8]} 41. Kh3 {[%clk 0:00:08.5]} 41... Ra2
{[%clk 0:00:07.5]} 42. Nf3 {[%clk 0:00:07.1]} 42... Qg2+ {[%clk 0:00:06.9]} 43.
Kh4 {[%clk 0:00:06]} 43... Rf2 {[%clk 0:00:05.1]} 44. Qf8 {[%clk 0:00:01.7]}
44... Rxf3 {[%clk 0:00:03.9]} 0-1

[Event "Late-Titled-Tuesday-Blitz-June-25-2024"]
[Site "Chess.com"]
[Date "2024.06.25"]
[Round "3"]
[White "SaraBlackPanther"]
[Black "HansOnTwitch"]
[Result "0-1"]
[WhiteElo "2735"]
[BlackElo "3119"]
[TimeControl "180+1"]
[EndTime "14:27:58 PDT"]
[Termination "HansOnTwitch won by resignation"]

1. d4 {[%clk 0:02:58.6]} 1... Nf6 {[%clk 0:02:59.6]} 2. c4 {[%clk 0:02:58.8]}
2... e6 {[%clk 0:03:00.1]} 3. Nf3 {[%clk 0:02:58.5]} 3... b6 {[%clk 0:03:00.2]}
4. g3 {[%clk 0:02:55.9]} 4... Bb7 {[%clk 0:03:00.2]} 5. Bg2 {[%clk 0:02:56.4]}
5... Be7 {[%clk 0:03:00.8]} 6. O-O {[%clk 0:02:56.7]} 6... O-O {[%clk
0:03:01.5]} 7. Nc3 {[%clk 0:02:57.3]} 7... Ne4 {[%clk 0:03:00.8]} 8. Bd2 {[%clk
0:02:57.8]} 8... d6 {[%clk 0:02:59.6]} 9. Rc1 {[%clk 0:02:53.2]} 9... Nd7 {[%clk
0:02:58.6]} 10. Be1 {[%clk 0:02:48.6]} 10... f5 {[%clk 0:02:57]} 11. d5 {[%clk
0:02:39.7]} 11... Nxc3 {[%clk 0:02:55.9]} 12. Bxc3 {[%clk 0:02:40.6]} 12... e5
{[%clk 0:02:56.6]} 13. b4 {[%clk 0:02:36.3]} 13... a5 {[%clk 0:02:44.4]} 14. a3
{[%clk 0:02:34.1]} 14... axb4 {[%clk 0:02:44.5]} 15. axb4 {[%clk 0:02:35]} 15...
Qe8 {[%clk 0:02:37.8]} 16. Ra1 {[%clk 0:02:23.2]} 16... Qh5 {[%clk 0:02:36.5]}
17. e3 {[%clk 0:02:19.4]} 17... Nf6 {[%clk 0:02:25.6]} 18. Nh4 {[%clk
0:01:29.4]} 18... Qxd1 {[%clk 0:02:22.6]} 19. Rfxd1 {[%clk 0:01:29]} 19... g6
{[%clk 0:02:23]} 20. h3 {[%clk 0:01:18.5]} 20... e4 {[%clk 0:02:18.4]} 21. Bf1
{[%clk 0:01:10.5]} 21... Nd7 {[%clk 0:02:08.2]} 22. Ng2 {[%clk 0:01:09.9]} 22...
g5 {[%clk 0:02:06.4]} 23. g4 {[%clk 0:00:57]} 23... fxg4 {[%clk 0:02:02.4]} 24.
hxg4 {[%clk 0:00:56.6]} 24... Bf6 {[%clk 0:02:00.3]} 25. Bxf6 {[%clk 0:00:53.6]}
25... Nxf6 {[%clk 0:02:01.2]} 26. Be2 {[%clk 0:00:54.2]} 26... Rxa1 {[%clk
0:01:54.2]} 27. Rxa1 {[%clk 0:00:53.9]} 27... Bc8 {[%clk 0:01:55.1]} 28. Ra7
{[%clk 0:00:52]} 28... Bxg4 {[%clk 0:01:55]} 29. Bxg4 {[%clk 0:00:47.9]} 29...
Nxg4 {[%clk 0:01:55.9]} 30. Rxc7 {[%clk 0:00:47.7]} 30... Rxf2 {[%clk
0:01:54.7]} 31. c5 {[%clk 0:00:43.5]} 31... bxc5 {[%clk 0:01:52]} 32. bxc5
{[%clk 0:00:44.4]} 32... Rd2 {[%clk 0:01:43.7]} 33. cxd6 {[%clk 0:00:31.7]}
33... Rd1+ {[%clk 0:01:41.1]} 34. Ne1 {[%clk 0:00:32.4]} 34... Rxe1+ {[%clk
0:01:40.7]} 35. Kg2 {[%clk 0:00:33]} 35... Nf6 {[%clk 0:01:06.3]} 36. d7 {[%clk
0:00:26.8]} 36... Nxd7 {[%clk 0:01:05.2]} 37. Kf2 {[%clk 0:00:23.6]} 37... Rd1
{[%clk 0:00:38.6]} 38. Rxd7 {[%clk 0:00:23.7]} 38... h5 {[%clk 0:00:38.1]} 39.
d6 {[%clk 0:00:19.6]} 39... h4 {[%clk 0:00:29]} 40. Rd8+ {[%clk 0:00:18.6]}
40... Kg7 {[%clk 0:00:22.7]} 41. Rd7+ {[%clk 0:00:17.6]} 41... Kg6 {[%clk
0:00:21.5]} 42. Rd8 {[%clk 0:00:16.9]} 42... Kh5 {[%clk 0:00:20.3]} 43. Rd7
{[%clk 0:00:11.2]} 43... Kg4 {[%clk 0:00:19.5]} 44. Rd8 {[%clk 0:00:09.6]} 44...
h3 {[%clk 0:00:15.7]} 45. d7 {[%clk 0:00:06.2]} 45... h2 {[%clk 0:00:10.7]} 46.
Rh8 {[%clk 0:00:05.7]} 46... Rxd7 {[%clk 0:00:10.9]} 47. Rxh2 {[%clk 0:00:05.5]}
47... Rd2+ {[%clk 0:00:10.9]} 0-1

[Event "Late-Titled-Tuesday-Blitz-June-25-2024"]
[Site "Chess.com"]
[Date "2024.06.25"]
[Round "3"]
[White "djano"]
[Black "KaydenTroffChess"]
[Result "1-0"]
[WhiteElo "2580"]
[BlackElo "2817"]
[TimeControl "180+1"]
[EndTime "14:28:04 PDT"]
[Termination "djano won by resignation"]

1. e4 {[%clk 0:03:00.9]} 1... c5 {[%clk 0:02:59.8]} 2. Nc3 {[%clk 0:03:00.5]}
2... g6 {[%clk 0:02:58.9]} 3. Bc4 {[%clk 0:02:59.3]} 3... Bg7 {[%clk 0:02:55.1]}
4. h4 {[%clk 0:02:58.6]} 4... h6 {[%clk 0:02:53.1]} 5. h5 {[%clk 0:02:57.3]}
5... g5 {[%clk 0:02:52.9]} 6. d3 {[%clk 0:02:56.6]} 6... e6 {[%clk 0:02:51.6]}
7. f4 {[%clk 0:02:56.2]} 7... gxf4 {[%clk 0:02:52.3]} 8. Qg4 {[%clk 0:02:56]}
8... Qg5 {[%clk 0:02:44]} 9. Qf3 {[%clk 0:02:26]} 9... Nc6 {[%clk 0:02:35.7]}
10. Bxf4 {[%clk 0:02:21.3]} 10... Qf6 {[%clk 0:02:30.2]} 11. Nge2 {[%clk
0:01:49.3]} 11... a6 {[%clk 0:02:28.3]} 12. a3 {[%clk 0:01:37.7]} 12... b5
{[%clk 0:02:23.9]} 13. e5 {[%clk 0:01:30.9]} 13... Qe7 {[%clk 0:02:13.1]} 14.
Ba2 {[%clk 0:01:26.4]} 14... Bb7 {[%clk 0:02:12.5]} 15. Qg3 {[%clk 0:01:25.9]}
15... f6 {[%clk 0:01:50.5]} 16. Ne4 {[%clk 0:01:09.2]} 16... Nxe5 {[%clk
0:01:33.7]} 17. Nd6+ {[%clk 0:01:00.4]} 17... Qxd6 {[%clk 0:01:12.7]} 18. Qxg7
{[%clk 0:00:59.4]} 18... O-O-O {[%clk 0:00:48.1]} 19. Qxh8 {[%clk 0:00:59.4]}
19... c4 {[%clk 0:00:18.8]} 20. d4 {[%clk 0:00:40.2]} 20... c3 {[%clk
0:00:12.7]} 21. dxe5 {[%clk 0:00:37.8]} 21... cxb2 {[%clk 0:00:11.9]} 22. Rd1
{[%clk 0:00:34.3]} 22... Qxa3 {[%clk 0:00:10.4]} 23. Bb1 {[%clk 0:00:26.5]}
23... Ne7 {[%clk 0:00:09.9]} 24. Qxh6 {[%clk 0:00:21.6]} 24... Nd5 {[%clk
0:00:08]} 25. exf6 {[%clk 0:00:20.3]} 25... Nc3 {[%clk 0:00:07.2]} 26. Nxc3
{[%clk 0:00:18.8]} 26... Qxc3+ {[%clk 0:00:07.2]} 27. Rd2 {[%clk 0:00:14.8]}
27... Bxg2 {[%clk 0:00:06.7]} 28. Rg1 {[%clk 0:00:14.2]} 28... Bf3 {[%clk
0:00:05.3]} 29. f7 {[%clk 0:00:11.4]} 29... Qc5 {[%clk 0:00:05.9]} 30. Be3
{[%clk 0:00:09.2]} 30... Qf5 {[%clk 0:00:05.5]} 31. Rg8 {[%clk 0:00:06.8]} 31...
Qxf7 {[%clk 0:00:05.5]} 32. Rxd8+ {[%clk 0:00:06.1]} 32... Kxd8 {[%clk
0:00:06.4]} 33. Qg5+ {[%clk 0:00:05.1]} 33... Kc8 {[%clk 0:00:06.1]} 34. Qc5+
{[%clk 0:00:04.7]} 34... Bc6 {[%clk 0:00:05.6]} 35. Rf2 {[%clk 0:00:04.7]} 35...
Qg7 {[%clk 0:00:05.1]} 36. Qf8+ {[%clk 0:00:03.8]} 36... Qxf8 {[%clk 0:00:03.6]}
37. Rxf8+ {[%clk 0:00:04.7]} 37... Kc7 {[%clk 0:00:04]} 38. h6 {[%clk
0:00:05.4]} 38... Be4 {[%clk 0:00:04.3]} 39. Kd2 {[%clk 0:00:03.4]} 39... b4
{[%clk 0:00:04.1]} 40. Rf4 {[%clk 0:00:02.9]} 40... Bh7 {[%clk 0:00:03.1]} 41.
Rxb4 {[%clk 0:00:03.5]} 41... Kc6 {[%clk 0:00:03.4]} 42. Rxb2 {[%clk 0:00:03.7]}
42... Kd5 {[%clk 0:00:03.9]} 43. Rb6 {[%clk 0:00:03.8]} 43... a5 {[%clk
0:00:03.9]} 44. Rb7 {[%clk 0:00:04]} 44... Kc6 {[%clk 0:00:03.3]} 45. Rb8 {[%clk
0:00:04.5]} 45... a4 {[%clk 0:00:03.4]} 46. Ba2 {[%clk 0:00:04.9]} 46... Kd6
{[%clk 0:00:03.1]} 47. Rh8 {[%clk 0:00:05]} 47... Bf5 {[%clk 0:00:03.1]} 48. h7
{[%clk 0:00:05]} 48... Kc6 {[%clk 0:00:03.5]} 49. Rc8+ {[%clk 0:00:03.4]} 49...
Kd6 {[%clk 0:00:03.5]} 50. h8=Q {[%clk 0:00:04.3]} 50... Bg6 {[%clk 0:00:02.6]}
51. Qd4+ {[%clk 0:00:04.1]} 51... Ke7 {[%clk 0:00:03]} 52. Bg5+ {[%clk
0:00:04.7]} 1-0

[Event "Late-Titled-Tuesday-Blitz-June-25-2024"]
[Site "Chess.com"]
[Date "2024.06.25"]
[Round "3"]
[White "Slovak_fighter2000"]
[Black "chesspingvin1995"]
[Result "0-1"]
[WhiteElo "2514"]
[BlackElo "2235"]
[TimeControl "180+1"]
[EndTime "14:28:05 PDT"]
[Termination "chesspingvin1995 won on time"]

1. d4 {[%clk 0:03:00.9]} 1... d5 {[%clk 0:02:59.6]} 2. c4 {[%clk 0:02:59.4]}
2... dxc4 {[%clk 0:03:00.5]} 3. e4 {[%clk 0:02:57.3]} 3... Nf6 {[%clk
0:03:00.1]} 4. e5 {[%clk 0:02:56.7]} 4... Nd5 {[%clk 0:03:00.2]} 5. Bxc4 {[%clk
0:02:57]} 5... Nb6 {[%clk 0:02:59.4]} 6. Bb3 {[%clk 0:02:54.9]} 6... Nc6 {[%clk
0:02:56.3]} 7. Be3 {[%clk 0:02:51.8]} 7... Bf5 {[%clk 0:02:54.9]} 8. Nf3 {[%clk
0:02:47.9]} 8... e6 {[%clk 0:02:54.7]} 9. Nc3 {[%clk 0:02:47.6]} 9... Be7 {[%clk
0:02:50.6]} 10. h3 {[%clk 0:02:39.5]} 10... Qd7 {[%clk 0:02:49.8]} 11. d5 {[%clk
0:02:13.4]} 11... exd5 {[%clk 0:02:36.8]} 12. Nxd5 {[%clk 0:02:14.3]} 12... Nxd5
{[%clk 0:02:37]} 13. Qxd5 {[%clk 0:02:12.9]} 13... Qxd5 {[%clk 0:02:30.7]} 14.
Bxd5 {[%clk 0:02:13.8]} 14... Nb4 {[%clk 0:02:25.4]} 15. Rd1 {[%clk 0:01:55.5]}
15... Nxd5 {[%clk 0:01:51.4]} 16. Rxd5 {[%clk 0:01:56.4]} 16... Be6 {[%clk
0:01:52]} 17. Rb5 {[%clk 0:01:38.8]} 17... b6 {[%clk 0:01:51.3]} 18. Nd4 {[%clk
0:01:29.3]} 18... Bc4 {[%clk 0:01:43.4]} 19. f4 {[%clk 0:01:14.8]} 19... Bxb5
{[%clk 0:01:38.1]} 20. Nxb5 {[%clk 0:01:15.7]} 20... O-O-O {[%clk 0:01:17.1]}
21. Nxa7+ {[%clk 0:01:12]} 21... Kb7 {[%clk 0:01:17.7]} 22. Nb5 {[%clk
0:01:12.6]} 22... Rd5 {[%clk 0:01:18.4]} 23. Nc3 {[%clk 0:01:05.6]} 23... Rd3
{[%clk 0:01:18.1]} 24. Ke2 {[%clk 0:01:03.8]} 24... Rhd8 {[%clk 0:01:18.7]} 25.
Rd1 {[%clk 0:01:01.8]} 25... Rxd1 {[%clk 0:01:15.3]} 26. Nxd1 {[%clk 0:01:02.7]}
26... Kc6 {[%clk 0:01:14.6]} 27. Nc3 {[%clk 0:00:46.2]} 27... Bc5 {[%clk
0:01:13.7]} 28. Bc1 {[%clk 0:00:37.2]} 28... h6 {[%clk 0:01:00.4]} 29. a3 {[%clk
0:00:35.5]} 29... Bd4 {[%clk 0:00:53.9]} 30. Ne4 {[%clk 0:00:28.2]} 30... Kd5
{[%clk 0:00:53.8]} 31. Kf3 {[%clk 0:00:27.1]} 31... Kc4 {[%clk 0:00:51.6]} 32.
b4 {[%clk 0:00:24.9]} 32... Kb3 {[%clk 0:00:42.6]} 33. g4 {[%clk 0:00:19.2]}
33... Bb2 {[%clk 0:00:41.4]} 34. Bxb2 {[%clk 0:00:14.9]} 34... Kxb2 {[%clk
0:00:42.3]} 35. f5 {[%clk 0:00:12.4]} 35... Kxa3 {[%clk 0:00:32.3]} 36. b5
{[%clk 0:00:10.3]} 36... Kb4 {[%clk 0:00:29.4]} 37. Kf4 {[%clk 0:00:10.6]} 37...
Kxb5 {[%clk 0:00:28.2]} 38. e6 {[%clk 0:00:10.9]} 38... fxe6 {[%clk 0:00:28.1]}
39. fxe6 {[%clk 0:00:11.8]} 39... Kc6 {[%clk 0:00:21.8]} 40. Kf5 {[%clk
0:00:12.3]} 40... Rd5+ {[%clk 0:00:20.6]} 41. Kg6 {[%clk 0:00:11.3]} 41... Re5
{[%clk 0:00:20.9]} 42. Ng3 {[%clk 0:00:07]} 42... Rxe6+ {[%clk 0:00:20.9]} 43.
Kxg7 {[%clk 0:00:07.4]} 43... Re3 {[%clk 0:00:18]} 44. Nf5 {[%clk 0:00:03.9]}
44... Rxh3 {[%clk 0:00:18]} 45. Nxh6 {[%clk 0:00:02.9]} 45... b5 {[%clk
0:00:17.3]} 46. Kg6 {[%clk 0:00:02.3]} 46... b4 {[%clk 0:00:17.2]} 47. Nf5
{[%clk 0:00:02.4]} 47... b3 {[%clk 0:00:16.1]} 48. Nd4+ {[%clk 0:00:02.8]} 48...
Kc5 {[%clk 0:00:16.3]} 49. Ne2 {[%clk 0:00:02.4]} 49... b2 {[%clk 0:00:15.5]}
50. g5 {[%clk 0:00:01.8]} 50... b1=Q+ {[%clk 0:00:15.3]} 0-1